lending/lending_fUSD_20250920
["ID","MTS","AMOUNT","RATE_DAILY","PERIOD"]
[386557351,1758391832125,-242.59,0.00018928,2]
[386557353,1758391832134,-300.0,0.00018941,2]
[386557355,1758391832144,-300.0,0.00018941,2]
[386557356,1758391832153,-1479.09033437,0.00018999,2]
[386557358,1758391832164,-1156.41848616,0.00018999,2]
[386557360,1758391832175,-266.14693919,0.00018999,2]
[386557362,1758391832185,-176.35,0.00019047,2]
[386557364,1758391832195,-250.0,0.00019098,2]
[386557366,1758391832205,-151.0,0.00019178,2]
[386557368,1758391832215,-168.0,0.00019346,2]
[386557370,1758391832225,-168.0,0.00019355,2]
[386557372,1758391832234,-250.0,0.00019443,2]
[386557374,1758391832243,-533.52588539,0.00019534,2]
[386557376,1758391832253,-533.52588539,0.00019616,2]
[386557378,1758391832262,-500.0,0.00019678,2]
[386557380,1758391832271,-168.0,0.00019681,2]
[386557382,1758391832281,-533.52588539,0.00019699,2]
[386557384,1758391832290,-159.47,0.000197,2]
[386557386,1758391832300,-500.0,0.000197,2]
[386557388,1758391832309,-1608.82,0.00019707,2]
[386557390,1758391832322,-168.0,0.00019709,2]
[386557392,1758391832331,-156.587,0.00019726,2]
[386557394,1758391832341,-533.52588539,0.00019781,2]
[386557396,1758391832350,-14768.0,0.000198,2]
[386557398,1758391832360,-200.0,0.0001984,2]
[386557400,1758391832369,-533.52588539,0.00019863,2]
[386557402,1758391832379,-206.17970911,0.00019886,2]
[386557437,1758391832692,-8254.8922,0.00019899,2]
[386557439,1758391832723,-1299.23929799,0.000199,2]
[386557440,1758391832736,-3700.76070201,0.000199,2]
[386557441,1758391832745,-463.60149665,0.000199,2]
[386557442,1758391832754,-23815.83541758,0.000199,2]
[386557443,1758391832765,-8737.65558739,0.000199,2]
[386557444,1758391832775,-173.80768283,0.000199,2]
[386557445,1758391832784,-164.61557769,0.000199,2]
[386557446,1758391832793,-223.25381669,0.000199,2]
[386557447,1758391832803,-206.01453442,0.000199,2]
[386557449,1758391832812,-465.9471952,0.000199,2]
[386557450,1758391832821,-533.52588539,0.00019945,2]
[386557452,1758391832830,-500.0,0.00019973,2]
[386557454,1758391832840,-472.70566136,0.00019973,2]
[386557456,1758391832849,-500.0,0.00019973,2]
[386557458,1758391832858,-500.0,0.00019973,2]
[386557460,1758391832867,-68.62178754,0.00019973,2]
[386557462,1758391832879,-431.37821246,0.00019973,2]
[386557464,1758391832888,-500.0,0.00019973,2]
[386557466,1758391832898,-39997.67565488,0.0001998,2]
[386557468,1758391832908,-166.479,0.00019987,2]
[386557470,1758391832917,-151.0,0.00019989,2]
[386557472,1758391832927,-151.0,0.00019992,2]
[386557474,1758391832937,-151.0,0.00019995,2]
[386557476,1758391832946,-151.0,0.00019997,2]
[386557478,1758391832956,-151.0,0.00019997,2]
[386557480,1758391832965,-151.0,0.00019997,2]
[386557482,1758391832976,-300.0,0.00019999,2]
[386557484,1758391832985,-1000.0,0.00019999,2]
[386557487,1758391832995,-155.0,0.00019999,2]
[386557489,1758391833005,-500.0,0.00019999,2]
[386557490,1758391833016,-500.0,0.00019999,2]
[386557493,1758391833025,-500.0,0.00019999,2]
[386557495,1758391833035,-439.0,0.00019999,2]
[386557497,1758391833045,-500.0,0.00019999,2]
[386557498,1758391833053,-150.0,0.00019999,2]
[386557500,1758391833063,-500.0,0.00019999,2]
[386557502,1758391833074,-3114.0,0.00019999,2]
[386557504,1758391833084,-584.0,0.00019999,2]
[386557506,1758391833093,-150.0,0.00019999,2]
[386557508,1758391833102,-150.0,0.00019999,2]
[386557510,1758391833111,-500.0,0.00019999,2]
[386557512,1758391833121,-500.0,0.00019999,2]
[386557514,1758391833132,-500.0,0.00019999,2]
[386557516,1758391833142,-500.0,0.00019999,2]
[386557519,1758391833152,-500.0,0.00019999,2]
[386557521,1758391833162,-150.0,0.00019999,2]
[386557523,1758391833172,-500.0,0.00019999,2]
[386557525,1758391833182,-150.0,0.00019999,2]
[386557526,1758391833191,-150.0,0.00019999,2]
[386557528,1758391833200,-150.0,0.00019999,2]
[386557530,1758391833208,-150.0,0.00019999,2]
[386557532,1758391833217,-150.0,0.00019999,2]
[386557534,1758391833227,-150.0,0.00019999,2]
[386557536,1758391833236,-479.0,0.00019999,2]
[386557538,1758391833247,-479.0,0.00019999,2]
[386557540,1758391833257,-150.0,0.00019999,2]
[386557542,1758391833267,-500.0,0.00019999,2]
[386557544,1758391833277,-1139.0,0.00019999,2]
[386557546,1758391833287,-537.0,0.00019999,2]
[386557548,1758391833297,-894.0,0.00019999,2]
[386557550,1758391833307,-8614.63420472,0.0002,2]
[386557976,1758391837724,-324.25288278,0.000199,2]
[386557978,1758391837734,-1784.14711722,0.0002,2]
[386557995,1758391837884,-892.95988779,0.0002,2]
[386557997,1758391837894,-397.6373026,0.0002,2]
[386557999,1758391837903,-1324.7787428,0.0002,2]
[386558164,1758391839502,-4397.90806179,0.0002,2]
[386558170,1758391839558,-1657432.18823747,0.0002,2]
[386558172,1758391839568,-197467.49021275,0.0002,2]
[386558449,1758391842872,-2648.48833118,0.0002,2]
[386558456,1758391842927,-633501.70108805,0.0002,2]
[386558463,1758391842981,-1039.974177,0.0002,2]
[386558474,1758391843088,-320.0,0.0002,2]
[386558535,1758391845559,-750.21800324,0.0002,2]
[386558536,1758391845570,-2479.05347954,0.0002,2]
[386558537,1758391845666,-42324.47874332,0.0002,2]
[386558538,1758391845678,-15618.75588908,0.0002,2]
[386558539,1758391845874,-17428.19250889,0.0002,2]
[386558540,1758391845928,-16617.03349485,0.0002,2]
[386558579,1758391957743,199.93,0.00030137,120]
[386558588,1758392078587,-233.13,0.00018814,2]
[386558589,1758392078605,-66.87,0.00018814,2]
[386558590,1758392078614,-233.13,0.00018814,2]
[386558591,1758392086638,-264.25,0.00018814,2]
[386558592,1758392086653,-2.62,0.00018814,2]
[386558593,1758392086662,-264.25,0.00018814,2]
[386558594,1758392094880,-32.8806711,0.00018814,2]
[386558595,1758392094912,-500.0,0.00018814,2]
[386558596,1758392094942,-500.0,0.00018814,2]
[386558597,1758392094973,-500.0,0.00018814,2]
[386558598,1758392095018,-32.8806711,0.00018814,2]
[386558599,1758392095033,-467.1193289,0.00018814,2]
[386558600,1758392095042,-32.8806711,0.00018814,2]
[386558601,1758392095054,-467.1193289,0.00018814,2]
[386558602,1758392095063,-32.8806711,0.00018814,2]
[386558603,1758392095078,-467.1193289,0.00018814,2]
[386558604,1758392095088,-32.8806711,0.00018814,2]
[386558605,1758392095104,-262.31688627,0.00018814,2]
[386558606,1758392102811,-11.07191604,0.00018814,2]
[386558607,1758392102846,-355.18492183,0.00018814,2]
[386558608,1758392102869,-11.07191604,0.00018814,2]
[386558609,1758392102884,-133.74316213,0.00018814,2]
[386558610,1758392102893,-366.25683787,0.00018814,2]
[386558613,1758392155772,9800.7,0.00030137,120]
[386558632,1758392516640,-233.74316213,0.00018824,2]
[386558633,1758392524678,-390.6427979,0.00018824,2]
[386558636,1758392588772,157.78,9.39e-05,2]
[386558637,1758392588966,157.78,0.0001252,2]
[386558638,1758392589165,157.78,0.0001565,2]
[386558639,1758392590406,-157.78,0.0001878,2]
[386558640,1758392590513,-561.76875391,0.00018814,2]
[386558643,1758392598395,-350.8303084,0.00018814,2]
[386558644,1758392606058,-156.4,0.00018777,2]
[386558645,1758392606152,-87.2,0.00018814,2]
[386558648,1758392647817,213.47064065,0.00021992,30]
[386558692,1758392817188,-311.60507199,0.00018777,2]
[386558693,1758392825265,-400.0,0.00018777,2]
[386558694,1758392833067,-400.0,0.00018777,2]
[386558695,1758392840837,-400.0,0.00018777,2]
[386558696,1758392850437,-400.0,0.00018777,2]
[386558697,1758392857070,5277.26621532,0.000185,2]
[386558698,1758392857309,-400.0,0.00018777,2]
[386558702,1758392865056,-558.11,0.00018777,2]
[386558703,1758392880812,-186.94,0.00018755,2]
[386558704,1758392880857,-126.12,0.00018777,2]
[386558708,1758392904482,-160.83368,0.00018777,2]
[386558713,1758392926558,-161.9674,0.00018777,2]
[386558716,1758392941967,-161.9674,0.00018777,2]
[386558719,1758392965886,-162.998609,0.00018777,2]
[386558727,1758392981903,-212.35,0.00018777,2]
[386558816,1758393031842,-3.24783901,0.00018777,2]
[386558817,1758393031852,-195.0,0.00018786,2]
[386558818,1758393031861,-85.98468246,0.00018795,2]
[386558819,1758393031873,-164.01531754,0.00018795,2]
[386558820,1758393031882,-195.0,0.00018802,2]
[386558821,1758393031892,-500.0,0.00018811,2]
[386558822,1758393031901,-500.0,0.00018811,2]
[386558823,1758393031911,-234.53202729,0.00018811,2]
[386558824,1758393031920,-300.0,0.00018813,2]
[386558825,1758393031930,-1200.0,0.00018813,2]
[386558826,1758393031940,-1000.20093769,0.00018814,2]
[386558827,1758393031949,-2000.0,0.00018814,2]
[386558828,1758393031962,-624.958,0.00018814,2]
[386558829,1758393031972,-1000.0,0.00018818,2]
[386558830,1758393031982,-46.48011797,0.00018824,2]
[386558831,1758393031991,-242.59,0.00018967,2]
[386558832,1758393032001,-200.0,0.00019015,2]
[386558833,1758393032010,-322.6107,0.00019015,2]
[386558834,1758393032019,-151.0,0.00019015,2]
[386558835,1758393032031,-168.29228254,0.00019015,2]
[386558836,1758393032043,-500.0,0.00019015,2]
[386558837,1758393032052,-500.0,0.00019015,2]
[386558838,1758393032061,-500.0,0.00019015,2]
[386558840,1758393032071,-500.0,0.00019015,2]
[386558841,1758393032082,-500.0,0.00019015,2]
[386558842,1758393032091,-500.0,0.00019015,2]
[386558843,1758393032101,-200.0,0.00019015,2]
[386558844,1758393032113,-610.14440801,0.00019015,2]
[386558845,1758393032123,-248.71531821,0.00019015,2]
[386558846,1758393032133,-160.0,0.00019015,2]
[386558848,1758393032146,-1156.41848616,0.00019015,2]
[386558850,1758393032155,-646.65982734,0.00019015,2]
[386558851,1758393032166,-4548.06874956,0.00019026,2]
[386558852,1758393032178,-1493.16572442,0.00019026,2]
[386558853,1758393032193,-267.31,0.00019026,2]
[386558854,1758393032205,-15987.05552602,0.00019026,2]
[386558855,1758393032215,-172.28057867,0.00019178,2]
[386558857,1758393032225,-168.0,0.00019438,2]
[386558859,1758393032234,-170.61,0.00019477,2]
[386558861,1758393032244,-396.95989845,0.000195,2]
[386558863,1758393032254,-168.0,0.00019541,2]
[386558865,1758393032267,-151.0,0.00019563,2]
[386558867,1758393032277,-200.0,0.00019563,2]
[386558869,1758393032286,-168.0,0.00019604,2]
[386558872,1758393032296,-500.0,0.00019678,2]
[386558873,1758393032305,-1594.25124654,0.000197,2]
[386558875,1758393032315,-891.27,0.000197,2]
[386558877,1758393032324,-1000.0,0.0001974,2]
[386558879,1758393032333,-849.19066337,0.0001977,2]
[386558882,1758393032345,-150.80933663,0.0001977,2]
[386558884,1758393032354,-791.33683348,0.00019794,2]
[386558886,1758393032366,-208.66316652,0.00019794,2]
[386558888,1758393032375,-1813.94585,0.000198,2]
[386558890,1758393032384,-218.8131686,0.00019868,2]
[386558892,1758393032394,-1000.0,0.00019875,2]
[386558894,1758393032403,-583.73209464,0.00019899,2]
[386558896,1758393032414,-3054.89654631,0.00019899,2]
[386558898,1758393032423,-3146.4791,0.000199,2]
[386558900,1758393032432,-5000.0,0.000199,2]
[386558902,1758393032442,-475.72535368,0.000199,2]
[386558904,1758393032451,-1000.0,0.000199,2]
[386558906,1758393032460,-771.0,0.000199,3]
[386558908,1758393032470,-1000.0,0.000199,3]
[386558911,1758393032479,-1000.0,0.000199,2]
[386558913,1758393032488,-312.0,0.000199,3]
[386558915,1758393032498,-1000.0,0.000199,3]
[386558916,1758393032508,-161.46938215,0.000199,2]
[386558917,1758393032517,-22806.20559191,0.000199,2]
[386558918,1758393032527,-186.04484726,0.000199,2]
[386558919,1758393032536,-150.03250715,0.000199,2]
[386558920,1758393032546,-20543.58912763,0.000199,2]
[386558921,1758393032577,-704.90263565,0.000199,2]
[386558922,1758393032588,-819.72465213,0.000199,2]
[386558923,1758393032615,-7208.36242039,0.000199,2]
[386558924,1758393032627,-5425.0,0.000199,2]
[386558925,1758393032639,-11577.84032004,0.000199,2]
[386558926,1758393032680,-184.46914923,0.00019867,2]
[386558927,1758393032690,-26134.606648,0.000199,2]
[386558928,1758393032700,-515.95977318,0.000199,2]
[386558929,1758393032710,-152.12916142,0.000199,2]
[386558930,1758393032719,-166.479,0.00019943,2]
[386558931,1758393032729,-958.11,0.00019958,2]
[386558932,1758393032739,-500.0,0.00019973,2]
[386558933,1758393032748,-175.77235458,0.00019973,2]
[386558934,1758393032758,-400.0,0.00019973,2]
[386558935,1758393032767,-500.0,0.00019973,2]
[386558936,1758393032777,-184.02533393,0.00019973,2]
[386558937,1758393032786,-500.0,0.00019973,2]
[386558938,1758393032795,-500.0,0.00019973,2]
[386558939,1758393032805,-5447.46636113,0.0001998,2]
[386558940,1758393032814,-151.0,0.00019997,2]
[386558941,1758393032824,-879.5657612,0.00019997,2]
[386558942,1758393032834,-1074.4372782,0.00019997,2]
[386558943,1758393032843,-151.0,0.00019997,2]
[386558944,1758393032853,-35388.6251753,0.00019998,2]
[386558945,1758393032862,-979.8707439,0.00019998,2]
[386558946,1758393032872,-151.0,0.00019998,2]
[386558947,1758393032882,-500.0,0.00019999,2]
[386558948,1758393032891,-500.0,0.00019999,2]
[386558949,1758393032900,-150.0,0.00019999,2]
[386558950,1758393032909,-500.0,0.00019999,2]
[386558951,1758393032919,-1026.0,0.00019999,2]
[386558952,1758393032928,-595.0,0.00019999,2]
[386558953,1758393032937,-203.65223162,0.00019999,2]
[386558954,1758393032947,-150.0,0.00019999,2]
[386558955,1758393032956,-158.6940796,0.00019999,2]
[386558956,1758393032965,-150.0,0.00019999,2]
[386558957,1758393032974,-3059.0,0.00019999,2]
[386558958,1758393032984,-560.0,0.00019999,2]
[386558959,1758393032993,-150.0,0.00019999,2]
[386558960,1758393033003,-234.64929246,0.00019999,2]
[386558961,1758393033012,-500.0,0.00019999,2]
[386558962,1758393033021,-500.0,0.00019999,2]
[386558963,1758393033035,-500.0,0.00019999,2]
[386558964,1758393033045,-298.90499701,0.00019999,2]
[386558965,1758393033054,-500.0,0.00019999,2]
[386558966,1758393033064,-150.0,0.00019999,2]
[386558967,1758393033073,-150.0,0.00019999,2]
[386558968,1758393033082,-500.0,0.00019999,2]
[386558969,1758393033092,-250.0,0.00019999,2]
[386558970,1758393033101,-150.0,0.00019999,2]
[386558971,1758393033110,-451.0,0.00019999,2]
[386558972,1758393033121,-150.0,0.00019999,2]
[386558973,1758393033131,-150.0,0.00019999,2]
[386558974,1758393033141,-1092.0,0.00019999,2]
[386558975,1758393033151,-836.56,0.00019999,2]
[386558976,1758393033160,-862.0,0.00019999,2]
[386558977,1758393033170,-500.0,0.0002,2]
[386558978,1758393033179,-1134.95156399,0.0002,2]
[386558979,1758393033192,-872.51270602,0.0002,2]
[386558980,1758393033202,-400.0,0.0002,2]
[386558981,1758393033211,-5645.87060487,0.0002,2]
[386558982,1758393033220,-23665.53820662,0.0002,2]
[386558983,1758393033231,-363.32516804,0.0002,2]
[386558984,1758393033243,-386.97407976,0.0002,2]
[386558985,1758393033254,-5128.24107518,0.0002,2]
[386558986,1758393033301,-214.67110394,0.00019867,2]
[386558987,1758393033311,-12641.24936411,0.0002,2]
[386558988,1758393033323,-846.92430861,0.0002,2]
[386558989,1758393033341,-399.98533012,0.0002,2]
[386558990,1758393033353,-4358.4,0.0002,2]
[386558992,1758393037662,-17624.64331915,0.0002,2]
[386558993,1758393037738,-9915.53894355,0.0002,2]
[386558994,1758393037789,-41631.23382834,0.0002,2]
[386558995,1758393037801,-2386.4502026,0.0002,2]
[386558996,1758393037919,-930.83854779,0.0002,2]
[386559140,1758393039680,-333.41110412,0.000199,2]
[386559141,1758393039690,-175935.06520438,0.0002,2]
[386559142,1758393039700,-1335680.84910142,0.0002,2]
[386559144,1758393039709,-104559.98466663,0.0002,2]
[386559146,1758393039719,-1274.95373995,0.0002,2]
[386559148,1758393039730,-7263.28079946,0.0002,2]
[386559188,1758393040102,-519.36901807,0.0002,7]
[386559191,1758393040113,-150.0,0.0002,2]
[386559193,1758393040123,-3049.77032457,0.0002,5]
[386559195,1758393040133,-1029.13877916,0.0002,2]
[386559197,1758393040143,-2819.4946404,0.0002,2]
[386559199,1758393040152,-90643.83026293,0.0002,2]
[386559201,1758393040162,-5183.6007199,0.0002,10]
[386559203,1758393040171,-126456.93008923,0.0002,2]
[386559204,1758393040202,-974.7825276,0.0002,2]
[386559205,1758393040214,-1935.10950853,0.0002,2]
[386559207,1758393040278,-575.40528391,0.0002,2]
[386559208,1758393040290,-2275.0,0.0002,2]
[386559210,1758393040301,-1025.33357338,0.0002,2]
[386559211,1758393040339,-17918.85169091,0.0002,2]
[386559212,1758393040351,-12676.09099237,0.0002,2]
[386559224,1758393043082,-804.93567262,0.0002,2]
[386559228,1758393046021,-55744.83304409,0.0002,2]
[386559229,1758393046035,-15681.32442004,0.0002,2]
[386559230,1758393046047,-33046.29058548,0.0002,2]
[386559236,1758393103480,-161.11524865,0.0001881,2]
[386559237,1758393103514,-500.0,0.0001881,2]
[386559238,1758393103545,-509.5842247,0.0001881,2]
[386559239,1758393103572,-500.0,0.0001881,2]
[386559240,1758393103603,-500.0,0.0001881,2]
[386559241,1758393103630,-500.0,0.0001881,2]
[386559242,1758393103658,-500.0,0.0001881,2]
[386559243,1758393103689,-500.0,0.0001881,2]
[386559244,1758393103716,-500.0,0.0001881,2]
[386559245,1758393103747,-500.0,0.0001881,2]
[386559246,1758393103774,-300.0,0.0001881,2]
[386559247,1758393104224,-7.10282483,0.0001881,2]
[386559248,1758393117683,915.0,0.0003013,120]
[386559291,1758393182298,988.17935039,0.0003013,120]
[386559343,1758393446081,79693.66756334,0.00019,10]
[386559360,1758393521800,158.76,9.488e-05,2]
[386559361,1758393576730,313.74,0.00025955,120]
[386559362,1758393576947,313.74,0.00028315,120]
[386559388,1758393696656,400.00630367,0.00024657,120]
[386559394,1758393816710,-247.09295288,0.00018578,2]
[386559410,1758393872681,9948.5,0.00018484,2]
[386559411,1758393876240,-2.90704712,0.00018578,2]
[386559412,1758393876273,-49.12390498,0.00018634,2]
[386559413,1758393876425,-133.46673774,0.00018634,2]
[386559415,1758393889779,-175.83,0.00018691,2]
[386559416,1758393889802,-17.17,0.00018691,2]
[386559417,1758393903652,-150.0,0.000187,2]
[386559418,1758393903846,-47.61,0.00018758,2]
[386559419,1758393906690,150.0,0.00018345,2]
[386559422,1758393914339,172.73271281,0.00018345,2]
[386559423,1758393914366,156.67306377,0.00018345,2]
[386559424,1758393915562,-250.0,0.00018729,2]
[386559425,1758393915591,-18.56216841,0.00018729,2]
[386559426,1758393915648,-281.43783159,0.00018729,2]
[386559427,1758393925706,150.0,0.00018345,2]
[386559428,1758393925795,150.0,0.00018345,2]
[386559429,1758393929249,150.0,0.00018345,2]
[386559430,1758393929326,-102.0,0.00018729,2]
[386559431,1758393929460,-198.0,0.00018729,2]
[386559436,1758393942488,-145.39,0.00018758,2]
[386559437,1758393942520,-109.22,0.00018758,2]
[386559438,1758393948888,150.0,0.00018345,2]
[386559439,1758393955489,-57.84606689,0.00018758,2]
[386559440,1758393955523,-44.20786622,0.00018758,2]
[386559441,1758393982098,-87.95,0.00018721,2]
[386559442,1758393982121,-77.38,0.00018721,2]
[386559445,1758393989700,-200.0,0.00018773,2]
[386559463,1758393996663,164.811153,0.00017837,2]
[386559464,1758393996911,502.106639,0.00017837,2]
[386559465,1758393996968,164.811153,0.00017801,2]
[386559466,1758393997027,170.092738,0.00017837,2]
[386559467,1758393997277,164.811153,0.00017441,2]
[386559468,1758393997345,502.106639,0.00017801,2]
[386559469,1758393997416,170.092738,0.00017801,2]
[386559470,1758393997492,169.889823,0.00017837,2]
[386559471,1758393997531,-172.42,0.00018773,2]
[386559472,1758393997670,502.106639,0.00017651,2]
[386559473,1758393997716,170.092738,0.00017441,2]
[386559474,1758393997769,169.889823,0.00017801,2]
[386559475,1758393997939,502.106639,0.00017651,2]
[386559476,1758393998054,169.889823,0.00017441,2]
[386559477,1758393998435,502.106639,0.0001765,2]
[386559478,1758393999269,502.106639,0.00017615,2]
[386559479,1758393999492,502.106639,0.0001756,2]
[386559480,1758393999608,167.472048,0.00017837,2]
[386559481,1758393999656,502.106639,0.00017559,2]
[386559482,1758393999789,167.472048,0.00017801,2]
[386559483,1758393999878,502.106639,0.00017555,2]
[386559484,1758394000141,167.472048,0.0001765,2]
[386559485,1758394000182,502.106639,0.00017451,2]
[386559486,1758394000372,167.472048,0.00017555,2]
[386559487,1758394000531,167.472048,0.00017441,2]
[386559488,1758394000573,502.106639,0.00017448,2]
[386559489,1758394000755,502.106639,0.00017441,2]
[386559490,1758394000844,502.106639,0.00017404,2]
[386559491,1758394001106,167.472048,0.00017403,2]
[386559492,1758394001148,502.106639,0.00017404,2]
[386559493,1758394002495,502.106639,0.00017403,2]
[386559494,1758394002550,167.472048,0.00017313,2]
[386559495,1758394002676,502.106639,0.00017369,2]
[386559496,1758394002763,502.106639,0.00017368,2]
[386559497,1758394003006,502.106639,0.00017345,2]
[386559498,1758394003072,502.106639,0.00017313,2]
[386559499,1758394003224,502.106639,0.00017308,2]
[386559500,1758394003334,502.106639,0.00017306,2]
[386559501,1758394003377,170.72205,0.00017837,2]
[386559502,1758394003608,170.72205,0.00017801,2]
[386559503,1758394003944,170.72205,0.00017651,2]
[386559504,1758394004257,170.72205,0.00017651,2]
[386559505,1758394004584,170.72205,0.0001765,2]
[386559506,1758394004820,170.72205,0.00017615,2]
[386559507,1758394005119,170.72205,0.0001756,2]
[386559508,1758394005410,170.72205,0.00017559,2]
[386559509,1758394005713,170.72205,0.00017555,2]
[386559510,1758394005999,170.72205,0.00017451,2]
[386559511,1758394006279,170.72205,0.00017448,2]
[386559512,1758394006995,170.72205,0.00017441,2]
[386559513,1758394007198,170.72205,0.00017404,2]
[386559514,1758394007271,170.72205,0.00017404,2]
[386559515,1758394007521,170.72205,0.00017403,2]
[386559516,1758394007807,170.72205,0.00017369,2]
[386559517,1758394008086,170.72205,0.00017368,2]
[386559518,1758394008395,170.72205,0.00017345,2]
[386559519,1758394008746,170.72205,0.00017313,2]
[386559520,1758394009000,170.72205,0.00017308,2]
[386559521,1758394009291,170.72205,0.00017306,2]
[386559522,1758394057156,-37.24142194,0.00018773,2]
[386559523,1758394057186,-300.0,0.00018799,2]
[386559524,1758394057219,-500.0,0.000188,2]
[386559525,1758394057249,-500.0,0.000188,2]
[386559526,1758394057281,-500.0,0.000188,2]
[386559527,1758394057311,-453.38451088,0.000188,2]
[386559528,1758394057344,-500.0,0.000188,2]
[386559529,1758394057376,-300.0,0.000188,2]
[386559530,1758394057409,-500.0,0.000188,2]
[386559531,1758394057443,-192.69725123,0.000188,2]
[386559532,1758394057476,-500.0,0.000188,2]
[386559533,1758394057508,-500.0,0.000188,2]
[386559534,1758394057538,-500.0,0.000188,2]
[386559535,1758394057569,-500.0,0.000188,2]
[386559536,1758394057599,-500.0,0.000188,2]
[386559537,1758394057636,-500.0,0.000188,2]
[386559538,1758394057667,-1200.0,0.00018801,2]
[386559539,1758394057695,-830.0,0.00018801,2]
[386559540,1758394057724,-132.20532281,0.00018803,2]
[386559541,1758394058976,-27.79467719,0.00018803,2]
[386559562,1758394232086,-516.38316968,0.00018802,2]
[386559563,1758394232096,-195.0,0.00018803,2]
[386559564,1758394232105,-300.0,0.00018803,2]
[386559565,1758394232115,-195.0,0.00018803,2]
[386559566,1758394232124,-213.32528632,0.00018807,2]
[386559567,1758394232133,-610.29969458,0.00018826,2]
[386559568,1758394232143,-1500.0,0.00018827,2]
[386559569,1758394232152,-313.74,0.00018877,2]
[386559570,1758394232162,-1000.0,0.00018877,2]
[386559571,1758394232172,-395.72,0.00018959,2]
[386559572,1758394232182,-1200.0,0.00018987,2]
[386559573,1758394232191,-300.0,0.00018987,2]
[386559574,1758394232200,-151.0,0.00018988,2]
[386559575,1758394232210,-151.0,0.00018988,2]
[386559576,1758394232219,-151.0,0.00018988,2]
[386559577,1758394232228,-500.0,0.00018988,2]
[386559578,1758394232237,-233.72339247,0.00018988,2]
[386559579,1758394232246,-500.0,0.00018988,2]
[386559580,1758394232255,-500.0,0.00018988,2]
[386559581,1758394232266,-500.0,0.00018988,2]
[386559582,1758394232276,-500.0,0.00018988,2]
[386559583,1758394232286,-156.587,0.00018988,2]
[386559584,1758394232296,-500.0,0.00018988,2]
[386559585,1758394232305,-500.0,0.00018988,2]
[386559586,1758394232315,-500.0,0.00018988,2]
[386559587,1758394232324,-202.1760498,0.00018988,2]
[386559588,1758394232333,-500.0,0.00018988,2]
[386559589,1758394232343,-500.0,0.00018988,2]
[386559590,1758394232353,-500.0,0.00018988,2]
[386559591,1758394232362,-500.0,0.00018988,2]
[386559592,1758394232371,-500.0,0.00018988,2]
[386559593,1758394232381,-500.0,0.00018988,2]
[386559594,1758394232390,-200.0,0.00018988,2]
[386559595,1758394232399,-500.0,0.00018988,2]
[386559596,1758394232409,-457.59778349,0.00018988,2]
[386559597,1758394232418,-500.0,0.00018988,2]
[386559598,1758394232428,-500.0,0.00018988,2]
[386559599,1758394232437,-151.0,0.00018988,2]
[386559600,1758394232447,-151.0,0.00018988,2]
[386559602,1758394232457,-151.0,0.00018988,2]
[386559604,1758394232466,-151.0,0.00018988,2]
[386559606,1758394232475,-151.0,0.00018988,2]
[386559608,1758394232485,-151.0,0.00018988,2]
[386559609,1758394232494,-151.0,0.00018988,2]
[386559612,1758394232503,-151.0,0.00018988,2]